bitfinex/quotes_SOLUSD_20251130
["timestamp","ask_amount","ask_price","bid_price","bid_amount"]
[1764543885012,28.03748234,137.37,137.36,0.1]
[1764543886012,35.31709215,137.37,137.36,0.1]
[1764543889216,26.80847381,137.37,137.36,0.1]
[1764543889617,35.31709215,137.37,137.36,0.1]
[1764543890408,31.69817306,137.37,137.36,0.1]
[1764543892891,32.38817306,137.37,137.36,0.1]
[1764543893311,31.69817306,137.37,137.36,0.1]
[1764543895599,32.38817306,137.37,137.36,0.1]
[1764543897126,31.69817306,137.37,137.36,0.8]
[1764543897710,23.08413652,137.41,137.36,0.8]
[1764543897902,7.27839167,137.4,137.36,5.68969925]
[1764543898309,7.27839167,137.4,137.37,0.7]
[1764543898528,12.16809092,137.4,137.37,0.7]
[1764543898734,33.58314186,137.4,137.37,0.7]
[1764543899229,28.69344261,137.4,137.37,0.7]
[1764543900704,33.58314186,137.4,137.36,8.90994492]
[1764543900925,33.58314186,137.4,137.37,0.7]
[1764543901305,7.27907992,137.38,137.37,0.7]
[1764543901530,7.27907992,137.38,137.36,0.1]
[1764543901825,7.27907992,137.38,137.36,0.8]
[1764543902218,7.27855011,137.39,137.36,0.8]
[1764543903118,30.36462464,137.39,137.36,0.8]
[1764543903316,8.10969925,137.38,137.36,0.1]
[1764543903711,4.88969925,137.37,137.36,0.1]
[1764543904114,5.54969925,137.37,137.36,0.1]
[1764543904305,12.82930906,137.37,137.36,0.1]
[1764543905026,7.27960981,137.37,137.36,0.8]
[1764543906136,7.27907992,137.38,137.36,0.8]
[1764543907233,10.49907992,137.38,137.36,0.8]
[1764543908432,12.55225274,137.38,137.36,0.8]
[1764543909334,10.49907992,137.38,137.36,0.8]
[1764543910731,7.27876617,137.39,137.37,8.80994492]
[1764543910936,7.27815245,137.4,137.38,0.7]
[1764543911149,29.0520861,137.45,137.39,10.86311774]
[1764543911312,7.27590221,137.44,137.4,2.05317282]
[1764543911517,10.49590221,137.44,137.41,10.86311774]
[1764543911740,10.49590221,137.44,137.41,9.50994492]
[1764543911984,10.49590221,137.44,137.42,0.7]
[1764543914032,10.49590221,137.44,137.41,10.86311774]
[1764543914033,10.49590221,137.44,137.39,0.7]
[1764543914340,10.49590221,137.44,137.4,10.86311774]
[1764543914846,10.49590221,137.44,137.41,0.7]
[1764543915038,10.49590221,137.44,137.41,2.75317282]
[1764543915422,10.49590221,137.44,137.42,0.7]
[1764543916340,7.27590221,137.44,137.42,0.7]
[1764543918737,9.32854568,137.45,137.42,0.7]
[1764543919637,27.51697783,137.45,137.42,0.7]
[1764543920540,7.27643163,137.43,137.4,9.50994492]
[1764543920841,7.27643163,137.43,137.41,0.7]
[1764543921421,9.32960445,137.43,137.41,0.7]
[1764543921741,27.51883055,137.44,137.41,0.7]
[1764543922957,27.51883055,137.44,137.39,2.05317282]
[1764543923137,28.17883055,137.44,137.4,0.7]
[1764543923340,2.05317282,137.43,137.4,0.7]
[1764543923543,2.05317282,137.41,137.37,0.7]
[1764543923733,2.05317282,137.4,137.37,0.72]
[1764543924460,7.27855011,137.39,137.37,0.72]
[1764543925236,2.05317282,137.38,137.36,0.1]
[1764543926031,28.21809821,137.39,137.36,0.1]
[1764543926458,7.27960981,137.37,137.36,0.1]
[1764543927845,10.49960981,137.37,137.36,0.1]
[1764543928042,11.16960981,137.37,137.36,0.1]
[1764543928239,29.53164663,137.37,137.36,0.1]
[1764543928662,16.308864,137.34,137.26,3.90378185]
[1764543928861,19.528864,137.33,137.26,0.1]
[1764543929159,4.10634564,137.27,137.26,0.1]
[1764543929359,16.308864,137.24,137.22,0.1]
[1764543929532,2.05317282,137.23,137.22,0.1]
[1764543929729,2.67317282,137.23,137.22,0.1]
[1764543930332,16.308864,137.2,137.15,3.80788478]
[1764543930529,12.19187668,137.19,137.15,3.80788478]
[1764543930739,4.90264085,137.18,137.16,0.71]
[1764543930944,4.90264085,137.18,137.15,3.80788478]
[1764543930945,4.90264085,137.18,137.15,4.51788478]
[1764543931147,4.90264085,137.19,137.16,9.51994492]
[1764543931451,4.90264085,137.17,137.13,4.1343433]
[1764543931638,0.62,137.18,137.14,0.71]
[1764543931639,4.90264085,137.18,137.14,0.71]
[1764543932048,0.62,137.19,137.14,9.51994492]
[1764543932235,26.81762163,137.2,137.14,0.71]
[1764543932441,26.81762163,137.2,137.15,0.71]
[1764543932748,12.19220209,137.19,137.15,0.71]
[1764543933155,19.528864,137.2,137.18,8.80994492]
[1764543933156,16.308864,137.2,137.18,8.80994492]
[1764543933359,7.28763437,137.22,137.19,0.71]
[1764543933765,10.50715105,137.23,137.19,5.61264085]
[1764543934070,16.308864,137.22,137.19,0.71]
[1764543934268,16.308864,137.22,137.2,0.71]
[1764543934565,7.28809853,137.21,137.2,0.71]
[1764543935135,12.19073938,137.21,137.17,0.71]
[1764543935339,12.19073938,137.21,137.16,0.71]
[1764543935564,7.28809853,137.21,137.17,0.71]
[1764543935763,7.28809853,137.21,137.18,13.71258577]
[1764543935945,7.28809853,137.21,137.19,0.71]
[1764543938866,37.03806959,137.3,137.2,13.71258577]
[1764543939054,4.90264085,137.26,137.22,8.80994492]
[1764543939374,4.90264085,137.25,137.22,8.80994492]
[1764543939672,4.90264085,137.25,137.22,9.51994492]
[1764543940056,12.18895506,137.25,137.22,0.71]
[1764543940459,12.18895506,137.25,137.21,8.80994492]
[1764543940460,7.28631421,137.25,137.23,0.71]
[1764543940970,3.22,137.32,137.24,13.71258577]
[1764543941182,4.90264085,137.3,137.25,0.71]
[1764543941474,4.90264085,137.3,137.26,8.80994492]
[1764543941678,4.90264085,137.31,137.26,8.80994492]
[1764543942010,4.90264085,137.31,137.24,16.308864]
[1764543942011,12.18772451,137.27,137.24,8.80994492]
[1764543942271,7.28508366,137.27,137.24,8.80994492]
[1764543942469,7.28508366,137.27,137.23,8.80994492]
[1764543942773,7.28508366,137.27,137.24,0.71]
[1764543943743,7.90508366,137.27,137.23,8.80994492]
[1764543943973,12.80772451,137.27,137.23,9.51994492]
[1764543944180,12.18772451,137.27,137.23,9.51994492]
[1764543944351,7.28508366,137.27,137.23,9.51994492]
[1764543944676,7.28508366,137.27,137.23,14.42258577]
[1764543945878,7.28508366,137.27,137.24,0.71]
[1764543946567,7.28508366,137.27,137.22,9.51994492]
[1764543946773,7.28508366,137.27,137.22,14.42258577]
[1764543947079,7.28508366,137.27,137.23,0.71]
[1764543947877,4.90264085,137.26,137.22,8.80994492]
[1764543948075,4.90264085,137.26,137.22,9.51994492]
[1764543948451,31.02000687,137.27,137.22,9.51994492]
[1764543948646,31.02000687,137.27,137.23,0.71]
[1764543948879,25.49736602,137.27,137.23,5.61264085]
[1764543949268,7.28508366,137.27,137.24,5.61264085]
[1764543949786,7.28508366,137.27,137.25,0.71]
[1764543950866,7.28597449,137.25,137.2,0.71]
[1764543951075,4.90264085,137.24,137.21,8.80994492]
[1764543951263,4.90264085,137.24,137.2,0.71]
[1764543951469,4.90264085,137.23,137.2,9.51994492]
[1764543951683,4.90264085,137.24,137.2,9.51994492]
[1764543952057,12.18964356,137.24,137.21,0.71]
[1764543952565,15.81636279,137.24,137.21,0.71]
[1764543952793,7.28700271,137.24,137.21,0.71]
[1764543953065,19.528864,137.27,137.23,8.52936008]
[1764543953280,3.22,137.27,137.23,8.52936008]
[1764543953479,10.50519028,137.27,137.24,0.71]
[1764543953689,0.62,137.29,137.25,17.339305]
[1764543953690,3.22,137.29,137.25,17.339305]
[1764543954065,10.5038517,137.29,137.26,0.71]
[1764543954277,19.03321178,137.29,137.26,0.71]
[1764543954853,37.24284103,137.29,137.26,0.71]
[1764543956392,16.308864,137.26,137.2,8.80994492]
[1764543956567,8.52936008,137.23,137.2,8.80994492]
[1764543957068,8.52936008,137.23,137.21,8.80994492]
[1764543957797,8.52936008,137.23,137.2,0.69]
[1764543957967,8.52936008,137.22,137.2,0.69]
[1764543958269,25.50276887,137.24,137.2,0.69]
[1764543958475,8.52936008,137.21,137.18,9.49994492]
[1764543958983,8.52936008,137.21,137.19,0.69]
[1764543960381,7.28862973,137.2,137.19,9.49994492]
[1764543960588,7.28862973,137.2,137.19,8.80994492]
[1764543960756,7.28862973,137.2,137.19,9.49994492]
[1764543961678,7.28809853,137.21,137.2,8.80994492]
[1764543961884,7.28809853,137.21,137.2,9.49994492]
[1764543962077,7.28809853,137.21,137.2,8.80994492]
[1764543962284,15.81745861,137.21,137.18,8.80994492]
[1764543962484,15.81745861,137.21,137.18,0.69]
[1764543962789,7.28809853,137.21,137.2,8.80994492]
[1764543963286,7.28809853,137.21,137.2,9.49994492]
[1764543963772,25.50758085,137.22,137.2,9.49994492]
[1764543964564,34.03694093,137.22,137.2,9.49994492]
[1764543964886,34.03694093,137.22,137.2,8.80994492]
[1764543965684,25.50758085,137.22,137.2,8.80994492]
[1764543965889,34.03694093,137.22,137.2,8.80994492]
[1764543966184,8.52936008,137.21,137.18,0.69]
[1764543967672,7.28862973,137.2,137.17,8.80994492]
[1764543967870,7.28862973,137.2,137.18,0.69]
[1764543968493,7.28862973,137.2,137.17,8.80994492]
[1764543968686,7.28862973,137.2,137.17,9.49994492]
[1764543969889,7.28862973,137.2,137.15,8.80994492]
[1764543969890,9.14936008,137.19,137.15,8.80994492]
[1764543970085,8.52936008,137.16,137.13,3.4243433]
[1764543971789,16.308864,137.17,137.13,3.4243433]
[1764543971790,11.76936008,137.19,137.14,18.029305]
[1764543972169,11.76936008,137.19,137.15,0.69]
[1764543972799,7.28969237,137.18,137.15,0.69]
[1764543973295,15.81905245,137.18,137.15,0.69]
[1764543973785,15.81905245,137.18,137.14,8.80994492]
[1764543973984,16.43905245,137.18,137.14,9.49994492]
[1764543974385,15.81905245,137.18,137.14,9.49994492]
[1764543975291,34.04328338,137.18,137.14,9.49994492]
[1764543975495,34.04328338,137.18,137.13,3.4243433]
[1764543975496,8.52936008,137.16,137.13,3.4243433]
[1764543975691,8.52936008,137.16,137.13,4.1143433]
[1764543977391,3.24,137.16,137.13,4.1143433]
[1764543977602,37.28711153,137.16,137.13,4.1143433]
[1764543977789,19.06022323,137.16,137.13,4.1143433]
[1764543977981,10.53086315,137.16,137.13,4.1143433]
[1764543979305,19.06022323,137.16,137.13,4.1143433]
[1764543979901,10.53086315,137.16,137.14,9.49994492]
[1764543980279,7.29014814,137.18,137.15,0.69]
[1764543980486,7.29014814,137.18,137.16,17.339305]
[1764543980871,7.28923058,137.19,137.18,8.80994492]
[1764543981274,7.28923058,137.19,137.18,9.49994492]
[1764543981490,25.50901378,137.21,137.18,9.49994492]
[1764543982008,25.50901378,137.21,137.19,0.69]
[1764543982203,7.28809853,137.21,137.2,8.80994492]
[1764543982578,7.28809853,137.21,137.2,0.69]
[1764543983278,7.2875674,137.22,137.2,0.69]
[1764543983996,7.28706325,137.23,137.21,8.80994492]
[1764543984206,7.28706325,137.23,137.22,9.52994492]
[1764543984896,15.81642333,137.23,137.18,9.24936008]
[1764543985083,8.52936008,137.21,137.18,8.80994492]
[1764543985403,7.28862973,137.2,137.18,9.52994492]
[1764543985902,7.28862973,137.2,137.18,8.80994492]
[1764543986079,7.28862973,137.2,137.19,0.66]
[1764543986400,7.28809853,137.21,137.19,0.66]
[1764543986604,7.28809853,137.21,137.17,9.46994492]
[1764543987304,7.28809853,137.21,137.18,0.66]
[1764543987798,7.28809853,137.21,137.17,8.80994492]
[1764543988007,9.14936008,137.21,137.17,9.46994492]
[1764543988208,8.52936008,137.18,137.14,0.66]
[1764543988391,11.76936008,137.17,137.13,3.4243433]
[1764543988588,3.24,137.17,137.14,0.66]
[1764543988888,3.24,137.17,137.15,8.80994492]
[1764543989089,28.07822408,137.19,137.15,8.80994492]
[1764543989289,28.07822408,137.19,137.15,0.66]
[1764543989484,19.548864,137.19,137.14,17.339305]
[1764543989701,19.548864,137.19,137.16,0.66]
[1764543990008,7.28969237,137.18,137.16,0.66]
[1764543990705,7.28925872,137.19,137.16,0.66]
[1764543991010,28.74884161,137.21,137.17,17.339305]
[1764543991411,28.74884161,137.21,137.18,0.66]
[1764543992301,10.52858495,137.21,137.18,0.66]
[1764543992922,8.52936008,137.19,137.16,0.66]
[1764543993085,8.52936008,137.18,137.14,9.46994492]
[1764543993592,8.52936008,137.18,137.15,0.66]
[1764543994087,7.2902238,137.17,137.15,0.66]
[1764543994482,7.2902238,137.17,137.14,8.80994492]
[1764543994690,7.2902238,137.17,137.14,9.46994492]
[1764543999896,7.2902238,137.17,137.14,8.80994492]
[1764544000116,7.2902238,137.17,137.15,0.66]
[1764544007829,7.2902238,137.17,137.14,0.66]
[1764544008140,9.14936008,137.16,137.13,3.4243433]
[1764544008314,11.74936008,137.15,137.13,3.4243433]
[1764544008715,3.22,137.15,137.13,3.4243433]
[1764544009127,3.22,137.15,137.13,4.0843433]
[1764544009324,7.29181857,137.14,137.13,4.0843433]
[1764544016934,10.51144227,137.15,137.13,4.0843433]
[1764544017835,10.51144227,137.15,137.14,0.68]
[1764544018745,23.12956182,137.18,137.14,0.68]
[1764544018917,23.12956182,137.18,137.14,5.58478499]
[1764544018918,25.5144692,137.18,137.14,5.58478499]
[1764544019118,25.5144692,137.18,137.14,0.68]
[1764544019318,25.5144692,137.18,137.15,0.68]
[1764544019730,5.52478499,137.17,137.13,12.23428822]
[1764544020023,8.12478499,137.17,137.14,0.68]
[1764544020412,5.27960286,137.17,137.14,0.68]
[1764544020830,7.29075532,137.16,137.14,0.68]
[1764544023321,7.29075532,137.16,137.13,12.23428822]
[1764544023622,7.29075532,137.16,137.13,12.91428822]
[1764544023940,0.62,137.15,137.13,12.23428822]
[1764544024239,23.64806972,137.14,137.13,3.4243433]
[1764544024744,23.64806972,137.14,137.08,0.1]
[1764544024745,29.8268783,137.14,137.08,0.1]
[1764544025046,2.05960286,137.09,137.08,0.1]
[1764544025248,12.57408094,137.09,137.08,0.1]
[1764544025541,13.19408094,137.09,137.08,0.1]
[1764544027956,12.57408094,137.09,137.08,0.1]
[1764544028549,10.51447808,137.09,137.08,0.78]
[1764544029043,7.29447808,137.09,137.08,0.78]
[1764544029227,7.29447808,137.09,137.08,0.1]
[1764544029630,7.29447808,137.09,137.08,0.78]
[1764544029949,7.29394602,137.1,137.08,0.78]
[1764544030144,7.29394602,137.1,137.08,0.1]
[1764544030454,22.20846686,137.09,137.08,0.1]
[1764544031933,29.50294494,137.09,137.08,0.1]
[1764544032465,32.35397931,137.09,137.08,0.1]
[1764544037162,26.82334208,137.09,137.08,0.1]
[1764544037346,31.73397931,137.09,137.08,0.1]
[1764544037653,7.29447808,137.09,137.08,0.78]
[1764544038162,7.29447808,137.09,137.08,0.1]
[1764544038532,31.73397931,137.09,137.08,0.1]
[1764544042559,32.35397931,137.09,137.08,0.1]
[1764544042735,27.44334208,137.09,137.08,0.1]
[1764544042936,32.35397931,137.09,137.08,0.1]
[1764544045745,31.73397931,137.09,137.08,0.1]
[1764544046067,26.82334208,137.09,137.08,0.78]
[1764544046450,7.29447808,137.09,137.08,0.78]
[1764544048167,7.29394602,137.1,137.08,0.78]
[1764544050769,7.29084755,137.16,137.09,21.01506023]
[1764544050972,7.29084755,137.16,137.11,4.91063723]
[1764544050973,25.51773585,137.16,137.11,4.91063723]
[1764544051140,26.19773585,137.16,137.11,4.91063723]
[1764544051343,26.19773585,137.16,137.12,0.68]
[1764544051663,25.51773585,137.16,137.12,5.59063723]
[1764544051844,7.29084755,137.16,137.12,5.59063723]
[1764544052137,7.29084755,137.16,137.13,0.68]
[1764544052570,30.42642055,137.17,137.13,0.68]
[1764544052773,8.81063723,137.16,137.12,8.80994492]
[1764544052948,3.22,137.16,137.13,0.68]
[1764544054171,7.29128691,137.15,137.13,0.68]
[1764544054747,10.51094202,137.16,137.13,0.68]
[1764544054947,7.28916101,137.19,137.15,2.05977352]
[1764544055163,7.28916101,137.19,137.16,2.05977352]
[1764544055669,7.28916101,137.19,137.16,0.68]
[1764544056172,7.2888159,137.2,137.17,8.80994492]
[1764544056362,7.2888159,137.2,137.17,10.86971844]
[1764544056670,7.2888159,137.2,137.18,0.68]
[1764544057266,7.2888159,137.2,137.15,8.80994492]
[1764544057267,2.73977352,137.19,137.15,8.80994492]
[1764544057484,2.73977352,137.19,137.15,9.48994492]
[1764544057773,5.27977352,137.2,137.16,0.68]
[1764544057973,5.95977352,137.2,137.16,0.68]
[1764544058277,7.28809853,137.21,137.17,10.86971844]
[1764544058465,7.28809853,137.21,137.16,2.73977352]
[1764544058655,10.02787205,137.21,137.16,2.73977352]
[1764544059356,0.68,137.2,137.16,2.73977352]
[1764544060563,2.73977352,137.2,137.15,18.16095239]
[1764544060761,0.68,137.2,137.16,2.73977352]
[1764544060977,25.50834486,137.21,137.17,0.68]
[1764544061181,2.05977352,137.2,137.16,0.68]
[1764544061366,7.28916101,137.19,137.16,0.68]
[1764544061677,28.25183707,137.19,137.14,11.54971844]
[1764544061877,26.19206355,137.19,137.15,2.05977352]
[1764544062108,26.19206355,137.19,137.15,2.73977352]
[1764544062275,26.19206355,137.19,137.15,11.54971844]
[1764544062484,25.51206355,137.19,137.16,0.68]
[1764544063153,27.57183707,137.19,137.15,8.80994492]
[1764544063357,2.73977352,137.18,137.14,9.48994492]
[1764544064375,7.2902238,137.17,137.14,9.48994492]
[1764544066656,0.68,137.16,137.11,0.68]
[1764544066856,2.73977352,137.16,137.12,8.80994492]
[1764544067264,2.73977352,137.16,137.12,9.48994492]
[1764544067671,0.68,137.15,137.11,2.05977352]
[1764544067877,0.68,137.15,137.11,11.54971844]
[1764544068476,2.73977352,137.15,137.09,11.19434433]
[1764544068781,2.73977352,137.15,137.1,11.54971844]
[1764544068782,7.29235032,137.13,137.1,11.54971844]
[1764544068954,7.29235032,137.13,137.11,0.68]
[1764544070681,20.96816714,137.15,137.11,0.68]
[1764544070682,7.29181857,137.14,137.11,0.68]
[1764544071061,7.97181857,137.14,137.11,0.68]
[1764544072754,29.41907701,137.15,137.11,0.68]
[1764544077766,7.29235032,137.13,137.11,0.68]
[1764544078366,7.29235032,137.13,137.1,12.0293414]
[1764544078367,7.29235032,137.13,137.1,12.7493414]
[1764544078770,7.29235032,137.13,137.11,0.72]
[1764544080660,3.88939648,137.12,137.08,0.1]
[1764544080866,3.21939648,137.09,137.08,0.1]
[1764544081065,6.43939648,137.09,137.08,0.1]
[1764544081368,7.10939648,137.09,137.08,0.1]
[1764544081570,7.10939648,137.09,137.02,0.1]
[1764544081881,3.21939648,137.06,137.02,0.1]
[1764544082085,7.29660707,137.05,137.02,8.90994492]
[1764544082289,7.96660707,137.05,137.02,8.90994492]
[1764544082683,7.96660707,137.05,137.02,9.62994492]
[1764544083085,7.96660707,137.05,137.02,8.90994492]
[1764544083385,3.21939648,137.04,137.02,0.1]
[1764544083688,22.74826048,137.03,137.0,0.1]
[1764544083890,3.21939648,137.01,137.0,0.1]
[1764544084266,3.88939648,137.01,137.0,0.1]
[1764544085486,11.18813379,137.01,137.0,0.1]
[1764544085689,7.96873731,137.01,137.0,0.1]
[1764544085871,11.18813379,137.01,137.0,0.1]
[1764544086671,11.18813379,137.01,136.99,0.1]
[1764544086672,3.21939648,137.0,136.99,0.1]
[1764544086875,7.10939648,137.0,136.99,0.1]
[1764544087487,13.73866655,137.0,136.99,0.1]
[1764544087676,14.40866655,137.0,136.99,0.1]
[1764544088464,11.18927007,137.0,136.99,0.1]
[1764544088674,14.40866655,137.0,136.99,0.1]
[1764544093286,7.29910969,137.01,136.99,0.1]
[1764544093496,22.13283066,137.05,137.0,0.72]
[1764544093676,26.8254,137.04,137.0,0.72]
[1764544093994,3.21939648,137.03,137.0,0.72]
[1764544094187,3.21939648,137.03,136.99,0.1]
[1764544094188,3.88939648,137.03,136.99,0.1]
[1764544094398,7.29820464,137.02,136.99,0.82]
[1764544094771,3.21939648,137.0,136.99,0.1]
[1764544095184,3.88939648,137.0,136.99,0.1]
[1764544095371,3.21939648,137.0,136.99,0.1]
[1764544095691,3.88939648,137.0,136.99,0.1]
[1764544095895,3.21939648,137.0,136.99,0.1]
[1764544096066,6.43939648,137.01,136.99,0.1]
[1764544096272,7.10939648,137.01,136.99,0.1]
[1764544096467,7.29927007,137.0,136.99,0.1]
[1764544096667,11.18866655,137.0,136.99,0.1]
[1764544100296,7.29927007,137.0,136.99,0.1]
[1764544100971,7.96927007,137.0,136.99,0.1]
[1764544101394,11.18866655,137.0,136.99,0.1]
[1764544102199,7.29927007,137.0,136.99,0.1]
[1764544102608,7.29927007,137.0,136.99,0.82]
[1764544102908,7.29927007,137.0,136.99,4.03939648]
[1764544103606,7.29927007,137.0,136.99,0.82]
[1764544103817,25.54371624,137.02,136.99,0.76]
[1764544105799,25.54371624,137.02,136.99,3.97939648]
[1764544105991,7.29820464,137.02,137.01,3.21939648]
[1764544106182,7.29820464,137.02,137.0,0.69]
[1764544107501,11.22706852,137.03,136.99,0.1]
[1764544107904,11.22706852,137.03,136.99,0.79]
[1764544108297,29.47124862,137.03,136.99,0.79]
[1764544108812,28.76124862,137.03,136.99,0.1]
[1764544109005,8.00867871,137.02,136.99,0.79]
[1764544110610,7.29867871,137.02,136.99,0.79]
[1764544111608,0.71,137.01,136.99,0.1]
[1764544112513,25.54419031,137.02,136.99,0.79]
[1764544112705,26.25419031,137.02,136.99,0.79]
[1764544115315,26.25419031,137.02,136.99,0.1]
[1764544116514,3.92939648,137.01,136.99,0.1]
[1764544116713,3.21939648,137.0,136.99,0.1]
[1764544117017,3.92939648,137.0,136.99,0.1]
[1764544118215,11.22866655,137.0,136.99,0.1]
[1764544119709,8.00927007,137.0,136.99,0.1]
[1764544119897,3.21939648,136.98,136.97,0.1]
[1764544120099,6.43939648,136.98,136.97,0.1]
[1764544120294,14.44973229,136.98,136.97,0.1]
[1764544123224,16.308864,136.97,136.94,0.1]
[1764544123412,19.52826048,136.95,136.86,3.31939648]
[1764544123620,6.43939648,136.94,136.89,3.21939648]
[1764544124019,3.93,136.94,136.9,0.69]
[1764544124322,3.93,136.94,136.86,7.40626157]
[1764544124323,7.30460189,136.9,136.86,0.79]
[1764544124529,10.52399837,136.9,136.86,0.79]
[1764544124829,3.92939648,136.89,136.86,0.1]
[1764544125429,28.78550311,136.9,136.86,0.79]
[1764544125608,29.49550311,136.9,136.86,0.79]
[1764544125922,25.56610663,136.9,136.86,0.79]
[1764544126127,25.56610663,136.9,136.86,4.00939648]
[1764544126524,7.30460189,136.9,136.87,0.69]
[1764544127810,3.22,136.93,136.89,3.21939648]
[1764544128004,3.22,136.93,136.9,0.69]
[1764544128211,7.14939648,136.93,136.89,0.69]
[1764544128830,7.14939648,136.93,136.88,12.0293414]
[1764544128831,0.71,136.92,136.88,12.0293414]
[1764544129032,0.71,136.92,136.88,0.69]
[1764544130025,31.9992142,136.94,136.89,3.21939648]
[1764544130332,7.30353491,136.92,136.88,0.69]
[1764544130513,10.52293139,136.92,136.88,0.69]
[1764544130713,11.23293139,136.92,136.88,0.69]
[1764544130912,8.01353491,136.92,136.88,3.90939648]
[1764544131333,26.27237218,136.92,136.88,3.90939648]
[1764544131506,8.01353491,136.92,136.88,0.69]
[1764544131707,7.30353491,136.92,136.89,0.69]
[1764544132308,7.30353491,136.92,136.89,3.90939648]
[1764544133219,7.30353491,136.92,136.89,0.69]
[1764544133439,3.22,136.94,136.9,3.90939648]
[1764544133734,11.23263423,136.94,136.9,0.69]
[1764544133914,0.71,136.93,136.9,0.69]
[1764544134430,0.71,136.93,136.88,2.75675089]
[1764544134431,7.30353491,136.92,136.88,2.75675089]
[1764544134637,21.47617058,136.94,136.89,2.75675089]
[1764544134638,12.58958875,136.94,136.89,2.75675089]
[1764544134817,10.52283786,136.94,136.9,2.06675089]
[1764544135024,0.71,136.93,136.89,2.75675089]
[1764544136236,31.54575933,136.94,136.9,0.71]
[1764544136932,0.7,136.93,136.89,2.06675089]
[1764544137430,7.30353491,136.92,136.89,2.06675089]
[1764544137637,7.30353491,136.92,136.89,2.77675089]
[1764544138920,8.00316952,136.93,136.9,0.71]
[1764544140734,8.00316952,136.93,136.88,0.71]
[1764544140735,27.62742424,136.93,136.88,0.71]
[1764544140919,28.32742424,136.93,136.89,0.71]
[1764544141539,2.76675089,136.92,136.87,10.08295385]
[1764544141843,26.26067335,136.93,136.89,2.06675089]
[1764544142013,25.56067335,136.93,136.88,0.71]
[1764544142218,2.76675089,136.92,136.88,0.71]
[1764544142918,0.7,136.92,136.88,0.71]
[1764544143124,7.30406836,136.91,136.88,0.71]
[1764544144148,7.30406836,136.91,136.89,0.71]
[1764544145243,7.30353491,136.92,136.89,0.71]
[1764544145545,8.00353491,136.92,136.89,0.71]
[1764544145942,7.30353491,136.92,136.89,0.71]
[1764544146133,7.30353491,136.92,136.89,2.77675089]
[1764544147146,25.56050536,136.93,136.89,2.77675089]
[1764544147346,26.26050536,136.93,136.89,2.77675089]
[1764544147933,0.7,136.92,136.89,2.77675089]
[1764544148448,7.3038322,136.92,136.89,2.77675089]
[1764544149351,7.30553576,136.96,136.91,2.06675089]
[1764544149667,25.5455806,137.01,136.96,8.80994492]
[1764544149836,27.61233149,137.01,136.95,2.06675089]
[1764544150038,0.7,137.01,136.96,2.06675089]
[1764544150240,12.58515057,137.02,136.97,0.71]
[1764544150241,0.7,137.0,136.97,0.71]
[1764544150435,7.99928213,137.0,136.97,0.71]
[1764544150646,0.7,137.0,136.96,0.71]
[1764544150830,0.7,137.0,136.96,2.77675089]
[1764544151029,0.7,137.0,136.96,0.71]
[1764544151230,0.7,137.0,136.96,2.77675089]
[1764544152564,7.99934282,137.0,136.96,2.77675089]
[1764544152757,7.99934282,137.0,136.93,3.22]
[1764544152758,2.06675089,136.98,136.93,2.06675089]
[1764544152960,2.06675089,136.95,136.9,10.87669581]
[1764544153267,2.06675089,136.93,136.89,8.80994492]
[1764544153462,2.76675089,136.94,136.89,10.87669581]
[1764544153767,2.06675089,136.93,136.88,2.77675089]
[1764544153934,2.76675089,136.93,136.88,2.77675089]
[1764544154135,2.76675089,136.93,136.89,0.71]
[1764544154346,5.62120326,136.93,136.89,0.71]
[1764544154842,0.7,136.93,136.89,5.63120326]
[1764544155155,0.7,136.92,136.88,5.63120326]
[1764544155972,0.7,136.92,136.89,4.92120326]
[1764544156141,7.30304802,136.93,136.89,5.63120326]
[1764544156341,8.00304802,136.93,136.89,5.63120326]
[1764544157847,12.22425128,136.93,136.89,0.71]
[1764544158052,12.92425128,136.93,136.89,0.71]
[1764544158968,8.00304802,136.93,136.89,0.71]
[1764544159145,8.00305393,136.93,136.89,0.71]
[1764544159468,0.7,136.93,136.89,12.93633055]